[Event "Fagernes Chess GM-Swiss 2025"]
[Site "Fagernes"]
[Date "2025.04.18"]
[Round "7.14"]
[White "Vestby-Ellingsen, Mads"]
[Black "Miezis, Normunds"]
[Result "1/2-1/2"]
[Annotator "RC"]
[ECO "B41"]
[WhiteElo "2398"]
[BlackElo "2409"]
[PlyCount "43"]
[EventDate "2025.04.12"]
[EventCountry "NOR"]
[SourceTitle "playchess.com"]
[Source "ChessBase"]
[SourceQuality "1"]
[TimeControl "40/6000+30:2400+30"]

1. e4 {[%emt 0:05:39]} c5 {[%emt 0:00:15]} 2. Nf3 {[%emt 0:00:16]} e6 {[%emt 0:00:10]} 3. d4 {[%emt 0:00:13]} cxd4 {[%emt 0:00:08]} 4. Nxd4 {[%emt 0:00:08]} a6 {[%emt 0:00:08]} 5. c4 {[%emt 0:00:13]} Nf6 {[%emt 0:05:06]} 6. Nc3 {[%emt 0:00:44]} Qc7 {[%emt 0:00:13]} 7. a3 {[%emt 0:00:29]} b6 {[%emt 0:00:14]} 8. f4 {[%emt 0:00:28]} Bb7 {[%emt 0:00:51]} 9. Bd3 {[%emt 0:00:21]} d6 {[%emt 0:10:48]} 10. f5 {[%emt 0:01:42]} e5 {[%emt 0:05:34]} 11. Nc2 {[%emt 0:00:19]} Nbd7 {[%emt 0:00:31]} 12. Bg5 {[%emt 0:02:58]} Be7 {[%emt 0:02:48]} 13. Qe2 {[%emt 0:00:46]} h6 {[%emt 0:06:31]} 14. Bxf6 {[%emt 0:01:59]} Nxf6 {[%emt 0:00:49]} 15. O-O {[%emt 0:02:48]} O-O {[%emt 0:00:44]} 16. Kh1 {[%emt 0:00:36]} Rfc8 {[%emt 0:00:34]} 17. Ne3 {[%emt 0:01:17]} Kf8 {[%emt 0:12:27]} 18. h3 {[%emt 0:10:21]} Qc5 {[%emt 0:03:43]} 19. Na4 {[%emt 0:11:16]} Qc6 {[%emt 0:06:52]} 20. Nc3 {[%emt 0:00:16]} Qc5 {[%emt 0:00:48]} 21. Na4 {[%emt 0:08:44]} Qc6 {[%emt 0:00:40]} 22. Nc3 {[%emt 0:00:10]} 1/2-1/2

[Event "Fagernes Chess GM-Swiss 2025"]
[Site "Fagernes"]
[Date "2025.04.18"]
[Round "7.15"]
[White "Aamodt, Peder Marcus"]
[Black "Bazakutsa, Svyatoslav"]
[Result "0-1"]
[Annotator "RC"]
[ECO "A48"]
[WhiteElo "2242"]
[BlackElo "2474"]
[PlyCount "54"]
[EventDate "2025.04.12"]
[EventCountry "NOR"]
[SourceTitle "playchess.com"]
[Source "ChessBase"]
[SourceQuality "1"]
[TimeControl "40/6000+30:2400+30"]

1. d4 {[%emt 0:07:02]} Nf6 {[%emt 0:00:10]} 2. Nf3 {[%emt 0:00:14]} g6 {[%emt 0:00:06]} 3. Nbd2 {[%emt 0:00:05]} Bg7 {[%emt 0:02:16]} 4. e4 {[%emt 0:00:24]} O-O {[%emt 0:00:17]} 5. Bd3 {[%emt 0:01:55]} c5 {[%emt 0:03:52]} 6. dxc5 {[%emt 0:07:34]} Qa5 {[%emt 0:02:00]} 7. a3 {[%emt 0:07:18]} Qxc5 {[%emt 0:06:31]} 8. b4 {[%emt 0:00:42]} Qc7 {[%emt 0:00:14]} 9. Bb2 {[%emt 0:00:07]} d5 {[%emt 0:01:35]} 10. Qe2 {[%emt 0:33:38]} dxe4 {[%emt 0:28:08]} 11. Bxe4 {[%emt 0:00:41]} Nxe4 {[%emt 0:03:12]} 12. Bxg7 {[%emt 0:00:45]} Nxd2 {[%emt 0:00:59]} 13. Bxf8 {[%emt 0:02:08]} Nxf3+ {[%emt 0:00:09]} 14. Qxf3 {[%emt 0:00:34]} Qe5+ {[%emt 0:00:58]} 15. Kd2 {[%emt 0:02:55]} Kxf8 {[%emt 0:00:50]} 16. Qc3 {[%emt 0:02:52]} Qxc3+ {[%emt 0:01:40]} 17. Kxc3 {[%emt 0:00:44]} Be6 {[%emt 0:00:03]} 18. Rac1 {[%emt 0:04:59]} Nd7 {[%emt 0:00:14]} 19. Kd4 {[%emt 0:02:01]} Nb6 {[%emt 0:00:58]} 20. Rhd1 {[%emt 0:01:53]} Rc8 {[%emt 0:01:23]} 21. Rd3 {[%emt 0:02:00]} Bf5 {[%emt 0:00:49]} 22. Rb3 {[%emt 0:01:58]} Bxc2 {[%emt 0:01:17]} 23. Rh3 {[%emt 0:02:12]} Kg7 {[%emt 0:01:10]} 24. f4 {[%emt 0:02:43]} Rd8+ {[%emt 0:00:46]} 25. Kc3 {[%emt 0:01:35]} Bf5 {[%emt 0:00:07]} 26. Rg3 {[%emt 0:00:45]} Na4+ {[%emt 0:00:19]} 27. Kb3 {[%emt 0:00:36]} b5 {[%emt 0:00:09]} 0-1

[Event "Fagernes Chess GM-Swiss 2025"]
[Site "Fagernes"]
[Date "2025.04.18"]
[Round "7.16"]
[White "Melaa, Sondre"]
[Black "Eliseev, Sergey"]
[Result "0-1"]
[Annotator "ChessBase"]
[ECO "D31"]
[WhiteElo "2344"]
[BlackElo "2226"]
[PlyCount "80"]
[EventDate "2025.04.12"]
[EventCountry "NOR"]
[SourceTitle "playchess.com"]
[Source "ChessBase"]
[SourceQuality "1"]
[TimeControl "40/6000+30:2400+30"]

1. d4 {[%emt 0:04:37]} d5 {[%emt 0:03:49]} 2. c4 {[%emt 0:00:12]} e6 {[%emt 0:00:09]} 3. Nc3 {[%emt 0:00:31]} a6 {[%emt 0:00:23]} 4. cxd5 {[%emt 0:00:56]} exd5 {[%emt 0:00:30]} 5. Qb3 {[%emt 0:00:36]} Nf6 {[%emt 0:01:48]} 6. Bg5 {[%emt 0:00:28]} c5 {[%emt 0:00:16]} 7. e3 {[%emt 0:01:46]} c4 {[%emt 0:01:50]} 8. Qd1 {[%emt 0:00:16]} Be7 {[%emt 0:10:28]} 9. Nge2 {[%emt 0:07:28]} Nbd7 {[%emt 0:09:32]} 10. g3 {[%emt 0:05:14]} b5 {[%emt 0:00:46]} 11. Bg2 {[%emt 0:02:21]} Bb7 {[%emt 0:00:50]} 12. a3 {[%emt 0:22:05]} h6 {[%emt 0:03:24]} 13. Bxf6 {[%emt 0:00:53]} Nxf6 {[%emt 0:00:02]} 14. Nf4 {[%emt 0:01:49]} Qd7 {[%emt 0:01:52]} 15. Qf3 {[%emt 0:11:43]} Rd8 {[%emt 0:00:48]} 16. Nh5 {[%emt 0:00:49]} O-O {[%emt 0:03:56]} 17. Nxf6+ {[%emt 0:00:24]} Bxf6 {[%emt 0:00:03]} 18. O-O {[%emt 0:00:23]} a5 {[%emt 0:03:39]} 19. Rfb1 {[%emt 0:07:25]} b4 {[%emt 0:04:28]} 20. axb4 {[%emt 0:01:34]} axb4 {[%emt 0:01:53]} 21. Ne2 {[%emt 0:00:11]} Ra8 {[%emt 0:11:03]} 22. Nf4 {[%emt 0:09:38]} Rfd8 {[%emt 0:00:48]} 23. Rxa8 {[%emt 0:01:20]} Bxa8 {[%emt 0:00:14]} 24. Ra1 {[%emt 0:03:53]} Bg5 {[%emt 0:05:52]} 25. Ne2 {[%emt 0:05:27]} Bc6 {[%emt 0:02:35]} 26. h4 {[%emt 0:04:06]} Be7 {[%emt 0:00:29]} 27. Kh2 {[%emt 0:03:05]} Bd6 {[%emt 0:09:00]} 28. h5 {[%emt 0:01:09]} Qb7 {[%emt 0:05:59]} 29. Qf5 {[%emt 0:01:54]} Ra8 {[%emt 0:06:05]} 30. Rxa8+ {[%emt 0:02:44]} Qxa8 {[%emt 0:00:03]} 31. Nf4 {[%emt 0:03:45]} Bxf4 {[%emt 0:00:47]} 32. exf4 {[%emt 0:00:37]} b3 {[%emt 0:04:47]} 33. Bh3 {[%emt 0:05:20]} Qe8 {[%emt 0:01:10]} 34. Bf1 {[%emt 0:02:08]} Qe6 {[%emt 0:00:40]} 35. Qxe6 {[%emt 0:00:36]} fxe6 {[%emt 0:00:02]} 36. Be2 {[%emt 0:00:25]} Ba4 {[%emt 0:01:24]} 37. Kg2 {[%emt 0:00:32]} Bb5 {[%emt 0:03:16]} 38. Bd1 {[%emt 0:00:29]} g6 {[%emt 0:04:32]} 39. Bg4 {[%emt 0:00:37]} c3 {[%emt 0:00:38]} 40. Bxe6+ {[%emt 0:00:15]} Kg7 {[%emt 0:00:01]} 0-1

[Event "Fagernes Chess GM-Swiss 2025"]
[Site "Fagernes"]
[Date "2025.04.18"]
[Round "7.17"]
[White "Westrum, Kim Roger Hansen"]
[Black "Lund, Gunnar"]
[Result "0-1"]
[Annotator "ChessBase"]
[ECO "B52"]
[WhiteElo "2193"]
[BlackElo "2341"]
[PlyCount "92"]
[EventDate "2025.04.12"]
[EventCountry "NOR"]
[SourceTitle "playchess.com"]
[Source "ChessBase"]
[SourceQuality "1"]
[TimeControl "40/6000+30:2400+30"]

1. e4 {[%emt 0:00:03]} c5 {[%emt 0:05:37]} 2. Nf3 {[%emt 0:00:15]} d6 {[%emt 0:00:06]} 3. Bb5+ {[%emt 0:00:27]} Bd7 {[%emt 0:00:10]} 4. Bxd7+ {[%emt 0:00:08]} Nxd7 {[%emt 0:00:07]} 5. O-O {[%emt 0:00:09]} Ngf6 {[%emt 0:00:06]} 6. Re1 {[%emt 0:00:08]} e6 {[%emt 0:00:24]} 7. c3 {[%emt 0:00:15]} Be7 {[%emt 0:00:05]} 8. d4 {[%emt 0:00:07]} O-O {[%emt 0:00:04]} 9. a3 {[%emt 0:09:17]} Rc8 {[%emt 0:01:50]} 10. e5 {[%emt 0:11:40]} Ne8 {[%emt 0:00:08]} 11. Nbd2 {[%emt 0:11:02]} cxd4 {[%emt 0:00:53]} 12. cxd4 {[%emt 0:00:11]} dxe5 {[%emt 0:00:07]} 13. dxe5 {[%emt 0:04:30]} Nc7 {[%emt 0:00:16]} 14. Qa4 {[%emt 0:12:55]} Nc5 {[%emt 0:06:32]} 15. Qg4 {[%emt 0:01:31]} Nd3 {[%emt 0:02:06]} 16. Rf1 {[%emt 0:05:39]} Qd5 {[%emt 0:05:29]} 17. Nc4 {[%emt 0:10:18]} h5 {[%emt 0:02:46]} 18. Qd4 {[%emt 0:00:08]} Rfd8 {[%emt 0:04:59]} 19. Qxd5 {[%emt 0:08:51]} Nxd5 {[%emt 0:00:27]} 20. Ne3 {[%emt 0:00:26]} N5f4 {[%emt 0:09:02]} 21. Kh1 {[%emt 0:09:18]} Ng6 {[%emt 0:09:00]} 22. Bd2 {[%emt 0:02:02]} Ngxe5 {[%emt 0:02:45]} 23. Nxe5 {[%emt 0:00:31]} Nxe5 {[%emt 0:00:02]} 24. Bc3 {[%emt 0:00:45]} Nd3 {[%emt 0:00:09]} 25. Rad1 {[%emt 0:04:05]} Bc5 {[%emt 0:06:39]} 26. Kg1 {[%emt 0:01:09]} Rd7 {[%emt 0:03:26]} 27. a4 {[%emt 0:02:06]} Rcd8 {[%emt 0:00:52]} 28. Rb1 {[%emt 0:02:07]} Nf4 {[%emt 0:08:13]} 29. Rfe1 {[%emt 0:02:39]} Bd4 {[%emt 0:02:39]} 30. Bxd4 {[%emt 0:03:07]} Rxd4 {[%emt 0:00:09]} 31. Rbd1 {[%emt 0:00:15]} Kf8 {[%emt 0:02:43]} 32. b3 {[%emt 0:02:15]} Rxd1 {[%emt 0:01:49]} 33. Rxd1 {[%emt 0:00:24]} Rxd1+ {[%emt 0:00:05]} 34. Nxd1 {[%emt 0:00:05]} Ke7 {[%emt 0:03:51]} 35. Nb2 {[%emt 0:02:39]} Kd6 {[%emt 0:01:32]} 36. g3 {[%emt 0:01:04]} Ne2+ {[%emt 0:00:55]} 37. Kf1 {[%emt 0:00:16]} Nd4 {[%emt 0:00:04]} 38. b4 {[%emt 0:00:09]} Kd5 {[%emt 0:01:01]} 39. f4 {[%emt 0:00:52]} Nc2 {[%emt 0:03:28]} 40. b5 {[%emt 0:02:50]} Kd4 {[%emt 0:02:34]} 41. Ke2 {[%emt 0:40:24]} Nb4 {[%emt 0:41:23]} 42. Kd2 {[%emt 0:00:00]} f6 {[%emt 0:00:00]} 43. h4 {[%emt 0:00:00]} Nd5 {[%emt 0:00:00]} 44. Nd3 {[%emt 0:00:00]} Nb6 {[%emt 0:00:00]} 45. Nb4 {[%emt 0:00:00]} Nxa4 {[%emt 0:00:00]} 46. Nc2+ {[%emt 0:00:00]} Ke4 {[%emt 0:00:00]} 0-1

[Event "Fagernes Chess GM-Swiss 2025"]
[Site "Fagernes"]
[Date "2025.04.18"]
[Round "7.18"]
[White "Grave, Jacob Templen"]
[Black "Olsen, William Alexander"]
[Result "1-0"]
[Annotator "ChessBase"]
[ECO "B31"]
[WhiteElo "2337"]
[BlackElo "2188"]
[PlyCount "91"]
[EventDate "2025.04.12"]
[EventCountry "NOR"]
[SourceTitle "playchess.com"]
[Source "ChessBase"]
[SourceQuality "1"]
[TimeControl "40/6000+30:2400+30"]

1. e4 {[%emt 0:00:03]} c5 {[%emt 0:00:25]} 2. Nf3 {[%emt 0:00:09]} Nc6 {[%emt 0:00:05]} 3. Bb5 {[%emt 0:00:24]} Nf6 {[%emt 0:00:07]} 4. Bxc6 {[%emt 0:00:55]} dxc6 {[%emt 0:00:32]} 5. d3 {[%emt 0:00:06]} Qc7 {[%emt 0:01:01]} 6. h3 {[%emt 0:09:01]} g6 {[%emt 0:06:53]} 7. Nc3 {[%emt 0:03:27]} Bg7 {[%emt 0:04:19]} 8. Be3 {[%emt 0:00:47]} b6 {[%emt 0:02:39]} 9. Qd2 {[%emt 0:00:52]} e5 {[%emt 0:00:48]} 10. Bh6 {[%emt 0:03:49]} O-O {[%emt 0:00:13]} 11. Bxg7 {[%emt 0:02:01]} Kxg7 {[%emt 0:00:08]} 12. b3 {[%emt 0:01:48]} Re8 {[%emt 0:16:44]} 13. Ne2 {[%emt 0:03:40]} Nh5 {[%emt 0:10:31]} 14. Qc3 {[%emt 0:09:16]} Kg8 {[%emt 0:02:25]} 15. O-O {[%emt 0:15:29]} Be6 {[%emt 0:11:23]} 16. Rae1 {[%emt 0:15:38]} f6 {[%emt 0:04:51]} 17. Nh2 {[%emt 0:01:53]} Rf8 {[%emt 0:06:33]} 18. Qd2 {[%emt 0:02:28]} Nf4 {[%emt 0:12:46]} 19. Nxf4 {[%emt 0:03:16]} exf4 {[%emt 0:00:02]} 20. e5 {[%emt 0:00:51]} fxe5 {[%emt 0:04:23]} 21. Nf3 {[%emt 0:01:14]} Bd5 {[%emt 0:03:08]} 22. Nxe5 {[%emt 0:00:33]} Rf5 {[%emt 0:04:11]} 23. d4 {[%emt 0:04:14]} cxd4 {[%emt 0:03:47]} 24. Qxd4 {[%emt 0:00:06]} Rd8 {[%emt 0:00:33]} 25. Qa1 {[%emt 0:15:21]} c5 {[%emt 0:01:59]} 26. Ng4 {[%emt 0:00:35]} Qg7 {[%emt 0:01:12]} 27. Re7 {[%emt 0:00:08]} Rf7 {[%emt 0:09:03]} 28. Rxf7 {[%emt 0:00:20]} Kxf7 {[%emt 0:00:53]} 29. Ne5+ {[%emt 0:01:45]} Kg8 {[%emt 0:00:27]} 30. Rd1 {[%emt 0:00:27]} Qf6 {[%emt 0:00:36]} 31. c4 {[%emt 0:05:46]} Be6 {[%emt 0:00:13]} 32. Re1 {[%emt 0:00:14]} Bf5 {[%emt 0:00:39]} 33. Qc1 {[%emt 0:01:29]} g5 {[%emt 0:01:11]} 34. Qa3 {[%emt 0:00:47]} Qg7 {[%emt 0:01:44]} 35. Nc6 {[%emt 0:00:31]} Rd7 {[%emt 0:00:12]} 36. Nxa7 {[%emt 0:05:32]} Qc3 {[%emt 0:01:03]} 37. Rf1 {[%emt 0:00:04]} f3 {[%emt 0:00:29]} 38. Nb5 {[%emt 0:00:20]} Qd3 {[%emt 0:00:27]} 39. Qa8+ {[%emt 0:00:57]} Rd8 {[%emt 0:00:00]} 40. Qxf3 {[%emt 0:02:02]} Qxf3 {[%emt 0:00:09]} 41. gxf3 {[%emt 0:40:07]} Rd2 {[%emt 0:40:19]} 42. Nc3 {[%emt 0:00:00]} Bxh3 {[%emt 0:00:00]} 43. Re1 {[%emt 0:00:00]} Kf7 {[%emt 0:00:00]} 44. Ne4 {[%emt 0:00:00]} Rxa2 {[%emt 0:00:00]} 45. Nxg5+ {[%emt 0:00:00]} Kg6 {[%emt 0:00:00]} 46. Nxh3 {[%emt 0:00:00]} 1-0

[Event "Fagernes Chess GM-Swiss 2025"]
[Site "Fagernes"]
[Date "2025.04.18"]
[Round "7.19"]
[White "Southcott-Moyers, Indy"]
[Black "Hedman, Erik"]
[Result "1-0"]
[Annotator "ChessBase"]
[ECO "E19"]
[WhiteElo "2227"]
[BlackElo "2276"]
[PlyCount "75"]
[EventDate "2025.04.12"]
[EventCountry "NOR"]
[SourceTitle "playchess.com"]
[Source "ChessBase"]
[SourceQuality "1"]
[TimeControl "40/6000+30:2400+30"]

1. d4 {[%emt 0:00:02]} Nf6 {[%emt 0:00:06]} 2. c4 {[%emt 0:00:06]} e6 {[%emt 0:00:10]} 3. Nf3 {[%emt 0:00:03]} b6 {[%emt 0:00:08]} 4. g3 {[%emt 0:00:27]} Bb7 {[%emt 0:00:16]} 5. Bg2 {[%emt 0:00:09]} Be7 {[%emt 0:00:04]} 6. O-O {[%emt 0:03:20]} O-O {[%emt 0:00:22]} 7. Nc3 {[%emt 0:00:06]} Ne4 {[%emt 0:00:20]} 8. Qc2 {[%emt 0:07:10]} Nxc3 {[%emt 0:01:54]} 9. Qxc3 {[%emt 0:02:16]} d6 {[%emt 0:00:15]} 10. Qd3 {[%emt 0:10:12]} d5 {[%emt 0:25:12]} 11. cxd5 {[%emt 0:04:45]} Bxd5 {[%emt 0:00:35]} 12. e4 {[%emt 0:08:22]} Bb7 {[%emt 0:00:23]} 13. Rd1 {[%emt 0:00:04]} Nd7 {[%emt 0:01:32]} 14. Bf4 {[%emt 0:02:14]} c5 {[%emt 0:08:04]} 15. d5 {[%emt 0:09:44]} exd5 {[%emt 0:00:52]} 16. exd5 {[%emt 0:00:05]} Bf6 {[%emt 0:00:14]} 17. d6 {[%emt 0:04:07]} Qc8 {[%emt 0:06:26]} 18. Qd2 {[%emt 0:08:08]} Re8 {[%emt 0:05:35]} 19. Re1 {[%emt 0:07:59]} Re4 {[%emt 0:21:00]} 20. Rxe4 {[%emt 0:10:14]} Bxe4 {[%emt 0:00:05]} 21. Re1 {[%emt 0:00:07]} Qb7 {[%emt 0:02:56]} 22. Nh4 {[%emt 0:05:14]} Bxg2 {[%emt 0:00:54]} 23. Nxg2 {[%emt 0:00:02]} h6 {[%emt 0:01:55]} 24. Ne3 {[%emt 0:06:48]} Re8 {[%emt 0:03:51]} 25. Nf5 {[%emt 0:00:59]} Re6 {[%emt 0:04:00]} 26. Ne7+ {[%emt 0:07:06]} Kf8 {[%emt 0:00:54]} 27. Rxe6 {[%emt 0:02:11]} fxe6 {[%emt 0:00:05]} 28. Qc2 {[%emt 0:01:33]} Bxe7 {[%emt 0:07:49]} 29. dxe7+ {[%emt 0:00:06]} Kxe7 {[%emt 0:00:08]} 30. Qg6 {[%emt 0:00:08]} Qd5 {[%emt 0:03:25]} 31. Qxg7+ {[%emt 0:00:05]} Kd8 {[%emt 0:00:07]} 32. Qh8+ {[%emt 0:02:34]} Ke7 {[%emt 0:00:14]} 33. Qh7+ {[%emt 0:02:30]} Kd8 {[%emt 0:00:08]} 34. Qxh6 {[%emt 0:00:43]} Qxa2 {[%emt 0:00:31]} 35. Qh8+ {[%emt 0:00:27]} Ke7 {[%emt 0:00:05]} 36. Qh4+ {[%emt 0:03:29]} Kf7 {[%emt 0:00:30]} 37. Qh7+ {[%emt 0:00:31]} Ke8 {[%emt 0:00:11]} 38. Bg5 {[%emt 0:01:33]} 1-0

[Event "Fagernes Chess GM-Swiss 2025"]
[Site "Fagernes"]
[Date "2025.04.18"]
[Round "7.20"]
[White "Brattgjerd, Isak Vinh"]
[Black "Ostensen, Nicolai Maxime"]
[Result "0-1"]
[Annotator "RC"]
[ECO "C63"]
[WhiteElo "2202"]
[BlackElo "2260"]
[PlyCount "74"]
[EventDate "2025.04.12"]
[EventCountry "NOR"]
[SourceTitle "playchess.com"]
[Source "ChessBase"]
[SourceQuality "1"]
[TimeControl "40/6000+30:2400+30"]

1. e4 {[%emt 0:00:25]} e5 {[%emt 0:00:25]} 2. Nf3 {[%emt 0:00:25]} Nc6 {[%emt 0:00:08]} 3. Bb5 {[%emt 0:00:05]} f5 {[%emt 0:00:04]} 4. d3 {[%emt 0:01:56]} fxe4 {[%emt 0:00:15]} 5. dxe4 {[%emt 0:00:02]} d6 {[%emt 0:00:14]} 6. c4 {[%emt 0:02:01]} Nf6 {[%emt 0:02:08]} 7. Nc3 {[%emt 0:00:07]} Be7 {[%emt 0:01:13]} 8. c5 {[%emt 0:04:58]} O-O {[%emt 0:18:40]} 9. O-O {[%emt 0:12:50]} Bg4 {[%emt 0:10:40]} 10. cxd6 {[%emt 0:13:30]} Bxd6 {[%emt 0:05:01]} 11. Bxc6 {[%emt 0:09:46]} bxc6 {[%emt 0:00:11]} 12. Qb3+ {[%emt 0:06:15]} Kh8 {[%emt 0:00:10]} 13. Nd2 {[%emt 0:00:57]} Qe8 {[%emt 0:09:12]} 14. Qc4 {[%emt 0:15:39]} Rb8 {[%emt 0:03:37]} 15. Qd3 {[%emt 0:08:56]} Bc5 {[%emt 0:07:52]} 16. Nb3 {[%emt 0:02:20]} Bb6 {[%emt 0:03:13]} 17. Na4 {[%emt 0:04:33]} Rd8 {[%emt 0:04:14]} 18. Qg3 {[%emt 0:01:41]} Be2 {[%emt 0:02:53]} 19. Bg5 {[%emt 0:03:26]} Nxe4 {[%emt 0:03:06]} 20. Qh4 {[%emt 0:00:05]} Nxg5 {[%emt 0:00:44]} 21. Nxb6 {[%emt 0:01:44]} Bxf1 {[%emt 0:00:31]} 22. Rxf1 {[%emt 0:00:21]} Nf3+ {[%emt 0:00:09]} 23. gxf3 {[%emt 0:00:04]} cxb6 {[%emt 0:00:07]} 24. Re1 {[%emt 0:00:22]} Qg6+ {[%emt 0:01:49]} 25. Kh1 {[%emt 0:00:22]} Qf6 {[%emt 0:00:08]} 26. Qxf6 {[%emt 0:01:16]} gxf6 {[%emt 0:00:06]} 27. Kg2 {[%emt 0:00:22]} c5 {[%emt 0:00:55]} 28. Re4 {[%emt 0:00:20]} Rg8+ {[%emt 0:00:19]} 29. Kf1 {[%emt 0:00:43]} Rd1+ {[%emt 0:00:08]} 30. Ke2 {[%emt 0:00:05]} Rb1 {[%emt 0:00:34]} 31. f4 {[%emt 0:00:14]} Rxb2+ {[%emt 0:00:06]} 32. Kf3 {[%emt 0:00:06]} Rxa2 {[%emt 0:00:16]} 33. fxe5 {[%emt 0:00:15]} fxe5 {[%emt 0:00:09]} 34. Rxe5 {[%emt 0:00:07]} Ra3 {[%emt 0:00:05]} 35. Re3 {[%emt 0:00:04]} Rf8+ {[%emt 0:00:05]} 36. Ke2 {[%emt 0:00:24]} Ra2+ {[%emt 0:00:09]} 37. Kd3 {[%emt 0:00:05]} Raxf2 {[%emt 0:00:22]} 0-1

[Event "Fagernes Chess GM-Swiss 2025"]
[Site "Fagernes"]
[Date "2025.04.18"]
[Round "7.21"]
[White "Pang, Ethan"]
[Black "Skaar, Ben Samuel Groth"]
[Result "1-0"]
[Annotator "RC"]
[ECO "B31"]
[WhiteElo "2257"]
[BlackElo "2167"]
[PlyCount "53"]
[EventDate "2025.04.12"]
[EventCountry "NOR"]
[SourceTitle "playchess.com"]
[Source "ChessBase"]
[SourceQuality "1"]
[TimeControl "40/6000+30:2400+30"]

1. e4 {[%emt 0:05:31]} c5 {[%emt 0:00:04]} 2. Nf3 {[%emt 0:00:47]} Nc6 {[%emt 0:00:05]} 3. Bb5 {[%emt 0:00:30]} g6 {[%emt 0:00:07]} 4. O-O {[%emt 0:00:43]} Bg7 {[%emt 0:00:05]} 5. c3 {[%emt 0:00:50]} Nf6 {[%emt 0:02:47]} 6. Re1 {[%emt 0:01:52]} O-O {[%emt 0:00:11]} 7. d4 {[%emt 0:01:24]} cxd4 {[%emt 0:00:22]} 8. cxd4 {[%emt 0:01:49]} d5 {[%emt 0:00:06]} 9. e5 {[%emt 0:00:19]} Ne4 {[%emt 0:00:05]} 10. Nc3 {[%emt 0:13:08]} Nxc3 {[%emt 0:00:55]} 11. bxc3 {[%emt 0:00:35]} Bg4 {[%emt 0:07:17]} 12. Ba3 {[%emt 0:07:43]} Re8 {[%emt 0:07:56]} 13. h3 {[%emt 0:22:16]} Bxf3 {[%emt 0:00:17]} 14. Qxf3 {[%emt 0:00:07]} e6 {[%emt 0:00:28]} 15. Rab1 {[%emt 0:02:30]} Bf8 {[%emt 0:10:09]} 16. Bxc6 {[%emt 0:02:01]} bxc6 {[%emt 0:03:28]} 17. Rb7 {[%emt 0:00:45]} Be7 {[%emt 0:00:06]} 18. g4 {[%emt 0:06:06]} Rb8 {[%emt 0:01:50]} 19. Reb1 {[%emt 0:00:54]} Rxb7 {[%emt 0:01:48]} 20. Rxb7 {[%emt 0:00:07]} f5 {[%emt 0:05:20]} 21. exf6 {[%emt 0:00:36]} Bxf6 {[%emt 0:00:05]} 22. g5 {[%emt 0:01:44]} Be7 {[%emt 0:16:23]} 23. Bxe7 {[%emt 0:00:20]} Rxe7 {[%emt 0:00:21]} 24. Qf6 {[%emt 0:00:09]} Rd7 {[%emt 0:00:29]} 25. Qxe6+ {[%emt 0:00:08]} Kf8 {[%emt 0:00:18]} 26. Rxd7 {[%emt 0:00:28]} Qxg5+ {[%emt 0:00:06]} 27. Qg4 {[%emt 0:01:24]} 1-0

[Event "Fagernes Chess GM-Swiss 2025"]
[Site "Fagernes"]
[Date "2025.04.18"]
[Round "7.22"]
[White "Holand, Per Fredrik"]
[Black "Blomqvist, Erik"]
[Result "0-1"]
[Annotator "RC"]
[ECO "B40"]
[WhiteElo "2070"]
[BlackElo "2475"]
[PlyCount "72"]
[EventDate "2025.04.12"]
[EventCountry "NOR"]
[SourceTitle "playchess.com"]
[Source "ChessBase"]
[SourceQuality "1"]
[TimeControl "40/6000+30:2400+30"]

1. e4 {[%emt 0:00:04]} c5 {[%emt 0:03:01]} 2. Nf3 {[%emt 0:00:10]} e6 {[%emt 0:00:13]} 3. g3 {[%emt 0:00:14]} d5 {[%emt 0:00:45]} 4. exd5 {[%emt 0:00:45]} exd5 {[%emt 0:00:05]} 5. Bg2 {[%emt 0:00:09]} Qe7+ {[%emt 0:00:44]} 6. Qe2 {[%emt 0:00:37]} Qxe2+ {[%emt 0:00:11]} 7. Kxe2 {[%emt 0:00:08]} Nc6 {[%emt 0:00:41]} 8. Nc3 {[%emt 0:03:00]} Be6 {[%emt 0:02:24]} 9. d4 {[%emt 0:02:05]} Nf6 {[%emt 0:01:48]} 10. h3 {[%emt 0:00:33]} h6 {[%emt 0:06:16]} 11. Be3 {[%emt 0:01:06]} c4 {[%emt 0:00:09]} 12. Ne5 {[%emt 0:08:18]} Rc8 {[%emt 0:01:50]} 13. g4 {[%emt 0:05:24]} Bb4 {[%emt 0:12:33]} 14. Nb1 {[%emt 0:00:39]} g5 {[%emt 0:02:41]} 15. c3 {[%emt 0:11:39]} Bd6 {[%emt 0:00:48]} 16. Nxc6 {[%emt 0:02:36]} Rxc6 {[%emt 0:00:06]} 17. b4 {[%emt 0:00:19]} Nd7 {[%emt 0:06:13]} 18. Nd2 {[%emt 0:01:42]} Nf8 {[%emt 0:00:11]} 19. h4 {[%emt 0:05:41]} gxh4 {[%emt 0:07:30]} 20. Rxh4 {[%emt 0:05:00]} Ng6 {[%emt 0:11:38]} 21. Rxh6 {[%emt 0:01:04]} Bxg4+ {[%emt 0:02:54]} 22. Ke1 {[%emt 0:01:44]} Rxh6 {[%emt 0:00:14]} 23. Bxh6 {[%emt 0:00:08]} Be6 {[%emt 0:04:42]} 24. Nf1 {[%emt 0:01:27]} Nh4 {[%emt 0:07:35]} 25. Bh1 {[%emt 0:04:00]} Nf5 {[%emt 0:08:29]} 26. Bg5 {[%emt 0:03:54]} Kd7 {[%emt 0:00:49]} 27. Kd2 {[%emt 0:01:13]} Rc8 {[%emt 0:06:11]} 28. Ne3 {[%emt 0:02:57]} Nxe3 {[%emt 0:00:05]} 29. Kxe3 {[%emt 0:04:44]} Rh8 {[%emt 0:00:30]} 30. Rg1 {[%emt 0:00:25]} Rg8 {[%emt 0:01:14]} 31. Rg2 {[%emt 0:07:20]} Bh3 {[%emt 0:00:24]} 32. f4 {[%emt 0:00:28]} Bxg2 {[%emt 0:01:18]} 33. Bxg2 {[%emt 0:00:07]} f6 {[%emt 0:00:28]} 34. Bxd5 {[%emt 0:02:05]} Re8+ {[%emt 0:00:06]} 35. Kf3 {[%emt 0:00:06]} fxg5 {[%emt 0:00:04]} 36. Bxc4 {[%emt 0:00:07]} Rf8 {[%emt 0:00:14]} 0-1